[Event "Championnat d'Europe Rapide"]
[Date "2024.12.07"]
[White "Kozul, Zdenko"]
[Black "Stojkoski, Acko"]
[WhiteElo "2519"]
[BlackElo "2030"]
[Round "1.39"]
[Result "1-0"]
[TimeControl "900+10"]

1. d4 {[%emt 00:00:03] [%clk 00:15:15]} d5 {[%emt 00:00:13] [%clk 00:15:08]} 2.
c4 {[%emt 00:00:02] [%clk 00:15:23]} c6 {[%emt 00:00:02] [%clk 00:15:16]} 3. Nf3
{[%emt 00:00:02] [%clk 00:15:32]} Nf6 {[%emt 00:00:06] [%clk 00:15:20]} 4. Nc3
{[%emt 00:00:01] [%clk 00:15:40]} e6 {[%emt 00:00:24] [%clk 00:15:06]} 5. Bg5
{[%emt 00:00:04] [%clk 00:15:46]} Be7 {[%emt 00:00:01] [%clk 00:15:15]} 6. e3
{[%emt 00:00:03] [%clk 00:15:53]} Nbd7 {[%emt 00:00:02] [%clk 00:15:23]} 7. Qc2
{[%emt 00:00:03] [%clk 00:16:00]} O-O {[%emt 00:00:03] [%clk 00:15:30]} 8. Rd1
{[%emt 00:00:05] [%clk 00:16:05]} Re8 {[%emt 00:00:02] [%clk 00:15:38]} 9. a3
{[%emt 00:00:06] [%clk 00:16:09]} Nf8 {[%emt 00:00:02] [%clk 00:15:46]} 10. Bd3
{[%emt 00:00:34] [%clk 00:15:44]} a6 {[%emt 00:00:33] [%clk 00:15:24]} 11. O-O
{[%emt 00:00:04] [%clk 00:15:49]} b5 {[%emt 00:00:01] [%clk 00:15:33]} 12. c5
{[%emt 00:00:07] [%clk 00:15:52]} a5 {[%emt 00:00:03] [%clk 00:15:40]} 13. Ne5
{[%emt 00:00:10] [%clk 00:15:52]} Bb7 {[%emt 00:00:42] [%clk 00:15:09]} 14. f4
{[%emt 00:00:08] [%clk 00:15:53]} g6 {[%emt 00:00:05] [%clk 00:15:14]} 15. b4
{[%emt 00:01:23] [%clk 00:14:40]} axb4 {[%emt 00:00:13] [%clk 00:15:12]} 16.
axb4 {[%emt 00:00:01] [%clk 00:14:49]} N6d7 {[%emt 00:00:02] [%clk 00:15:20]}
17. Nf3 {[%emt 00:00:02] [%clk 00:14:56]} f5 {[%emt 00:00:06] [%clk 00:15:23]}
18. Kh1 {[%emt 00:00:17] [%clk 00:14:50]} Bf6 {[%emt 00:00:17] [%clk 00:15:14]}
19. Rg1 {[%emt 00:00:10] [%clk 00:14:51]} Qe7 {[%emt 00:00:15] [%clk 00:15:09]}
20. g4 {[%emt 00:00:09] [%clk 00:14:53]} Kh8 {[%emt 00:00:14] [%clk 00:15:05]}
21. Bh6 {[%emt 00:00:48] [%clk 00:14:14]} Bg7 {[%emt 00:00:17] [%clk 00:14:59]}
22. Bxg7+ {[%emt 00:00:04] [%clk 00:14:20]} Qxg7 {[%emt 00:00:05] [%clk
00:15:04]} 23. g5 {[%emt 00:00:05] [%clk 00:14:25]} Ra3 {[%emt 00:00:28] [%clk
00:14:46]} 24. Qb2 {[%emt 00:00:12] [%clk 00:14:23]} Rea8 {[%emt 00:00:26] [%clk
00:14:31]} 25. Ra1 {[%emt 00:00:02] [%clk 00:14:31]} Rxa1 {[%emt 00:00:47] [%clk
00:13:54]} 26. Rxa1 {[%emt 00:00:01] [%clk 00:14:39]} Rxa1+ {[%emt 00:00:01]
[%clk 00:14:03]} 27. Qxa1 {[%emt 00:00:02] [%clk 00:14:48]} Qe7 {[%emt 00:00:01]
[%clk 00:14:12]} 28. Qa7 {[%emt 00:00:05] [%clk 00:14:52]} Bc8 {[%emt 00:00:24]
[%clk 00:13:57]} 29. Qc7 {[%emt 00:00:03] [%clk 00:14:59]} e5 {[%emt 00:01:05]
[%clk 00:13:02]} 30. Nxe5 {[%emt 00:00:29] [%clk 00:14:40]} Qe8 {[%emt 00:00:24]
[%clk 00:12:49]} 31. Qxc6 {[%emt 00:00:08] [%clk 00:14:41]} h6 {[%emt 00:01:35]
[%clk 00:11:24]} 32. Nxb5 {[%emt 00:01:19] [%clk 00:13:32]} hxg5 {[%emt
00:00:44] [%clk 00:10:50]} 33. Nd6 {[%emt 00:00:03] [%clk 00:13:38]} Qe7 {[%emt
00:00:10] [%clk 00:10:50]} 34. Qxc8 {[%emt 00:01:04] [%clk 00:12:44]} Nxe5
{[%emt 00:01:06] [%clk 00:09:54]} 35. fxe5 {[%emt 00:01:48] [%clk 00:11:05]} g4
{[%emt 00:01:34] [%clk 00:08:30]} 36. Bxf5 {[%emt 00:00:18] [%clk 00:10:58]}
gxf5 {[%emt 00:01:47] [%clk 00:06:53]} 37. Qxf5 {[%emt 00:00:05] [%clk
00:11:03]} Nh7 {[%emt 00:00:24] [%clk 00:06:40]} 38. Qc8+ {[%emt 00:00:11] [%clk
00:11:02]} Nf8 {[%emt 00:00:05] [%clk 00:06:44]} 39. Qxg4 {[%emt 00:00:07] [%clk
00:11:05]} Qa7 {[%emt 00:01:03] [%clk 00:05:52]} 40. Qh4+ {[%emt 00:00:10] [%clk
00:11:04]} Kg8 {[%emt 00:00:25] [%clk 00:05:37]} 41. Qg5+ {[%emt 00:00:02] [%clk
00:11:12]} Kh8 {[%emt 00:00:07] [%clk 00:05:40]} 42. Qf6+ {[%emt 00:00:05] [%clk
00:11:18]} Kg8 {[%emt 00:00:55] [%clk 00:04:55]} 43. Nf5 {[%emt 00:00:07] [%clk
00:11:20]} Kh7 {[%emt 00:01:56] [%clk 00:03:10]} 44. Qe7+ {[%emt 00:00:17] [%clk
00:11:14]} 1-0

[Site "Europe Echecs"]

[Event "Championnat d'Europe Rapide"]
[Date "2024.12.07"]
[White "Nahkur, Madis"]
[Black "Boyer, Mahel"]
[WhiteElo "2119"]
[BlackElo "2526"]
[Round "1.40"]
[Result "1/2-1/2"]
[TimeControl "900+10"]

1. e4 {[%emt 00:00:02] [%clk 00:15:17]} c5 {[%emt 00:01:37] [%clk 00:13:43]} 2.
Nc3 {[%emt 00:00:06] [%clk 00:15:21]} e6 {[%emt 00:00:25] [%clk 00:13:27]} 3. g3
{[%emt 00:00:05] [%clk 00:15:27]} d5 {[%emt 00:00:13] [%clk 00:13:24]} 4. exd5
{[%emt 00:00:21] [%clk 00:15:16]} exd5 {[%emt 00:00:02] [%clk 00:13:31]} 5. d4
{[%emt 00:00:02] [%clk 00:15:25]} cxd4 {[%emt 00:01:22] [%clk 00:12:12]} 6. Qxd4
{[%emt 00:00:10] [%clk 00:15:31]} Be6 {[%emt 00:00:08] [%clk 00:12:13]} 7. Bg2
{[%emt 00:00:07] [%clk 00:15:34]} Nc6 {[%emt 00:00:03] [%clk 00:12:21]} 8. Qd1
{[%emt 00:00:17] [%clk 00:15:28]} Nf6 {[%emt 00:00:16] [%clk 00:12:14]} 9. Nge2
{[%emt 00:00:05] [%clk 00:15:33]} d4 {[%emt 00:00:02] [%clk 00:12:22]} 10. Bxc6+
{[%emt 00:00:41] [%clk 00:15:03]} bxc6 {[%emt 00:00:02] [%clk 00:12:30]} 11.
Qxd4 {[%emt 00:00:03] [%clk 00:15:10]} Qa5 {[%emt 00:01:40] [%clk 00:10:59]} 12.
Qa4 {[%emt 00:01:35] [%clk 00:13:46]} Qxa4 {[%emt 00:01:46] [%clk 00:09:23]} 13.
Nxa4 {[%emt 00:00:01] [%clk 00:13:54]} Bb4+ {[%emt 00:00:02] [%clk 00:09:31]}
14. c3 {[%emt 00:00:10] [%clk 00:13:55]} Be7 {[%emt 00:00:26] [%clk 00:09:14]}
15. Be3 {[%emt 00:00:12] [%clk 00:13:54]} Rd8 {[%emt 00:00:44] [%clk 00:08:40]}
16. O-O {[%emt 00:00:21] [%clk 00:13:43]} Ng4 {[%emt 00:00:10] [%clk 00:08:40]}
17. Nd4 {[%emt 00:02:19] [%clk 00:11:34]} Bd7 {[%emt 00:00:31] [%clk 00:08:18]}
18. b4 {[%emt 00:00:47] [%clk 00:10:58]} h5 {[%emt 00:00:03] [%clk 00:08:25]}
19. Rfe1 {[%emt 00:00:48] [%clk 00:10:20]} f6 {[%emt 00:01:18] [%clk 00:07:16]}
20. Nc5 {[%emt 00:00:32] [%clk 00:09:58]} Bxc5 {[%emt 00:00:12] [%clk 00:07:15]}
21. bxc5 {[%emt 00:00:01] [%clk 00:10:07]} Kf7 {[%emt 00:00:27] [%clk 00:06:57]}
22. Bf4 {[%emt 00:00:06] [%clk 00:10:11]} Rde8 {[%emt 00:00:36] [%clk 00:06:32]}
23. h4 {[%emt 00:00:56] [%clk 00:09:25]} Rhg8 {[%emt 00:00:44]} 24. Rxe8 {[%clk
00:09:11]} Rxe8 {[%emt 00:00:02] [%clk 00:06:28]} 25. Rb1 {[%emt 00:00:05] [%clk
00:09:17]} Kg6 {[%emt 00:01:25] [%clk 00:05:12]} 26. Rb7 {[%emt 00:00:45] [%clk
00:08:42]} Re1+ {[%emt 00:00:47] [%clk 00:04:36]} 27. Kg2 {[%emt 00:00:01] [%clk
00:08:51]} Be6 {[%emt 00:00:01] [%clk 00:04:44]} 28. Nxe6 {[%emt 00:01:01] [%clk
00:08:00]} Rxe6 {[%emt 00:00:02] [%clk 00:04:52]} 29. Rxa7 {[%emt 00:00:36]
[%clk 00:07:35]} Re2 {[%emt 00:00:05] [%clk 00:04:56]} 30. Rc7 {[%emt 00:00:14]
[%clk 00:07:31]} Rxf2+ {[%emt 00:00:07] [%clk 00:04:59]} 31. Kg1 {[%emt
00:00:02] [%clk 00:07:39]} Rxa2 {[%emt 00:00:14] [%clk 00:04:56]} 32. Rxc6
{[%emt 00:00:02] [%clk 00:07:47]} Rc2 {[%emt 00:01:35] [%clk 00:03:31]} 33. Rc8
{[%emt 00:00:11] [%clk 00:07:46]} Ne5 {[%emt 00:03:05] [%clk 00:00:35]} 34. c6
{[%emt 00:00:47] [%clk 00:07:09]} Rxc3 {[%emt 00:00:29] [%clk 00:00:16]} 35. c7
{[%emt 00:00:12] [%clk 00:07:08]} Rc2 {[%emt 00:00:13] [%clk 00:00:13]} 36. Kf1
{[%emt 00:00:17] [%clk 00:07:01]} Kf7 {[%emt 00:00:05] [%clk 00:00:19]} 37. Ke1
{[%emt 00:00:28] [%clk 00:06:42]} Rc4 {[%emt 00:00:14] [%clk 00:00:15]} 38. Ke2
{[%emt 00:00:09] [%clk 00:06:43]} Ke6 {[%emt 00:00:14] [%clk 00:00:11]} 39. Bxe5
{[%emt 00:00:53] [%clk 00:06:00]} fxe5 {[%emt 00:00:02] [%clk 00:00:19]} 40.
Re8+ {[%emt 00:00:05] [%clk 00:06:05]} Kd7 {[%emt 00:00:02] [%clk 00:00:27]} 41.
Rxe5 {[%emt 00:00:01] [%clk 00:06:14]} Rxc7 {[%emt 00:00:26] [%clk 00:00:11]}
42. Rxh5 {[%emt 00:00:03] [%clk 00:06:21]} Ke6 {[%emt 00:00:02] [%clk 00:00:19]}
43. Rb5 {[%emt 00:00:29] [%clk 00:06:02]} Rc3 {[%emt 00:00:04] [%clk 00:00:25]}
44. Kf2 {[%emt 00:00:02] [%clk 00:06:10]} Kf6 {[%emt 00:00:02] [%clk 00:00:33]}
45. Rd5 {[%emt 00:00:08] [%clk 00:06:13]} Ra3 {[%emt 00:00:02] [%clk 00:00:41]}
46. Rb5 {[%emt 00:00:04] [%clk 00:06:19]} Rc3 {[%emt 00:00:02] [%clk 00:00:48]}
47. Kg2 {[%emt 00:00:04] [%clk 00:06:25]} g6 {[%emt 00:00:25] [%clk 00:00:33]}
48. Kh3 {[%emt 00:00:08] [%clk 00:06:27]} Rc4 {[%emt 00:00:02] [%clk 00:00:41]}
49. Rg5 {[%emt 00:00:05] [%clk 00:06:32]} Rc1 {[%emt 00:00:03] [%clk 00:00:48]}
50. Rg4 {[%emt 00:00:20] [%clk 00:06:22]} Rc5 {[%emt 00:00:34] [%clk 00:00:24]}
51. Rf4+ {[%emt 00:00:02] [%clk 00:06:31]} Kg7 {[%emt 00:00:01] [%clk 00:00:32]}
52. Rb4 {[%emt 00:00:36] [%clk 00:06:05]} Kf6 {[%emt 00:00:03] [%clk 00:00:39]}
53. Kg4 {[%emt 00:00:08] [%clk 00:06:08]} Rc6 {[%emt 00:00:05] [%clk 00:00:44]}
54. Kf4 {[%emt 00:00:07] [%clk 00:06:11]} Rc1 {[%emt 00:00:08] [%clk 00:00:46]}
55. Rb6+ {[%emt 00:00:06] [%clk 00:06:15]} Kg7 {[%emt 00:00:15] [%clk 00:00:39]}
56. Rb5 {[%emt 00:00:10] [%clk 00:06:17]} Kf6 {[%emt 00:00:08] [%clk 00:00:41]}
57. Rb6+ {[%emt 00:00:35] [%clk 00:05:52]} Kg7 {[%emt 00:00:04] [%clk 00:00:46]}
58. Re6 {[%emt 00:00:34] [%clk 00:05:28]} Kf7 {[%emt 00:00:11] [%clk 00:00:46]}
59. Rb6 {[%emt 00:00:07] [%clk 00:05:31]} Kg7 {[%emt 00:00:04] [%clk 00:00:51]}
60. Rb5 {[%emt 00:00:25] [%clk 00:05:17]} Kf6 {[%emt 00:00:04] [%clk 00:00:57]}
61. Rb4 {[%emt 00:00:12] [%clk 00:05:16]} Ra1 {[%emt 00:00:36] [%clk 00:00:30]}
62. Kg4 {[%emt 00:00:15] [%clk 00:05:12]} Ra3 {[%emt 00:00:16] [%clk 00:00:23]}
63. Rf4+ {[%emt 00:00:47] [%clk 00:04:35]} Kg7 {[%emt 00:00:02] [%clk 00:00:31]}
64. Rf3 {[%emt 00:00:17] [%clk 00:04:28]} Ra4+ {[%emt 00:00:07] [%clk 00:00:33]}
65. Rf4 {[%emt 00:00:01] [%clk 00:04:38]} Ra3 {[%emt 00:00:02] [%clk 00:00:41]}
66. Rb4 {[%emt 00:00:19] [%clk 00:04:29]} Kf6 {[%emt 00:00:04] [%clk 00:00:46]}
67. Rf4+ {[%emt 00:00:07] [%clk 00:04:32]} 1/2-1/2

[Site "Europe Echecs"]

[Event "Championnat d'Europe Rapide"]
[Date "2024.12.07"]
[White "Livaic, Leon"]
[Black "Afonso, Joao Pedro"]
[WhiteElo "2560"]
[BlackElo "2112"]
[Round "1.41"]
[Result "1-0"]
[TimeControl "900+10"]

1. d4 {[%emt 00:00:03] [%clk 00:15:17]} Nf6 {[%emt 00:00:03] [%clk 00:15:17]} 2.
c4 {[%emt 00:00:04] [%clk 00:15:25]} b6 {[%clk 00:15:24]} 3. f3 {[%emt 00:00:08]
[%clk 00:15:26]} Nc6 {[%emt 00:00:04] [%clk 00:15:31]} 4. Nc3 {[%emt 00:00:28]
[%clk 00:15:08]} Bb7 {[%emt 00:01:51] [%clk 00:13:50]} 5. Nh3 {[%emt 00:01:14]
[%clk 00:14:04]} e5 {[%emt 00:02:44] [%clk 00:11:16]} 6. d5 {[%emt 00:00:04]
[%clk 00:14:10]} Na5 {[%emt 00:00:25] [%clk 00:11:01]} 7. e4 {[%emt 00:01:54]
[%clk 00:12:25]} c6 {[%emt 00:03:55] [%clk 00:07:17]} 8. d6 {[%emt 00:03:20]
[%clk 00:09:16]} Ba6 {[%emt 00:00:29] [%clk 00:06:59]} 9. f4 {[%clk 00:09:24]}
Nxc4 {[%emt 00:05:47] [%clk 00:01:21]} 10. Qa4 {[%emt 00:02:10] [%clk 00:07:24]}
Bb5 {[%emt 00:01:02] [%clk 00:00:30]} 11. Qb3 {[%emt 00:02:42] [%clk 00:04:52]}
Na5 {[%emt 00:00:27] [%clk 00:00:13]} 12. Qd1 {[%emt 00:00:01] [%clk 00:05:00]}
Bxf1 {[%emt 00:00:11] [%clk 00:00:13]} 13. Rxf1 {[%emt 00:00:01] [%clk
00:05:09]} exf4 {[%emt 00:00:11] [%clk 00:00:12]} 14. e5 {[%emt 00:00:14] [%clk
00:05:06]} Nd5 {[%emt 00:00:11] [%clk 00:00:11]} 15. Nxd5 {[%emt 00:00:31] [%clk
00:04:44]} Qh4+ {[%emt 00:00:08] [%clk 00:00:13]} 16. g3 {[%emt 00:00:19] [%clk
00:04:35]} fxg3 {[%emt 00:00:10] [%clk 00:00:14]} 17. Nc7+ {[%emt 00:00:03]
[%clk 00:04:42]} Kd8 {[%emt 00:00:02] [%clk 00:00:22]} 18. Bg5+ {[%emt 00:00:02]
[%clk 00:04:50]} 1-0

[Site "Europe Echecs"]

[Event "Championnat d'Europe Rapide"]
[Date "2024.12.07"]
[White "Zhukovskyi, Oleksandr"]
[Black "Kazakouski, Valery"]
[WhiteElo "2199"]
[BlackElo "2567"]
[Round "1.42"]
[Result "0-1"]
[TimeControl "900+10"]

1. e4 {[%emt 00:00:03] [%clk 00:15:18]} c5 {[%clk 00:15:18]} 2. Nf3 {[%clk
00:15:26]} a6 {[%emt 00:00:02] [%clk 00:15:26]} 3. c4 {[%emt 00:00:03] [%clk
00:15:34]} Nc6 {[%emt 00:00:02] [%clk 00:15:34]} 4. d4 {[%emt 00:00:02] [%clk
00:15:41]} cxd4 {[%emt 00:00:02] [%clk 00:15:43]} 5. Nxd4 {[%emt 00:00:01] [%clk
00:15:50]} e5 {[%emt 00:00:01] [%clk 00:15:51]} 6. Nf5 {[%emt 00:00:01] [%clk
00:15:58]} d6 {[%emt 00:00:02] [%clk 00:16:00]} 7. Nc3 {[%emt 00:00:02] [%clk
00:16:07]} g6 {[%clk 00:16:08]} 8. Ne3 {[%emt 00:00:01] [%clk 00:16:15]} Bh6
{[%emt 00:00:02] [%clk 00:16:17]} 9. Be2 {[%emt 00:00:03] [%clk 00:16:22]} Be6
{[%emt 00:00:03] [%clk 00:16:24]} 10. O-O {[%emt 00:00:08] [%clk 00:16:24]} Nf6
{[%emt 00:00:02] [%clk 00:16:32]} 11. Nc2 {[%emt 00:00:13] [%clk 00:16:21]} Bg7
{[%emt 00:01:09] [%clk 00:15:33]} 12. b4 {[%emt 00:04:26] [%clk 00:12:05]} O-O
{[%emt 00:00:07] [%clk 00:15:35]} 13. Ba3 {[%emt 00:01:00] [%clk 00:11:16]} Re8
{[%emt 00:01:27] [%clk 00:14:17]} 14. Qd2 {[%emt 00:02:50] [%clk 00:08:36]} Nd4
{[%emt 00:00:35] [%clk 00:13:52]} 15. Nxd4 {[%emt 00:04:07] [%clk 00:04:39]}
exd4 {[%emt 00:00:03] [%clk 00:13:59]} 16. Nd1 {[%emt 00:01:15] [%clk 00:03:35]}
Nxe4 {[%emt 00:00:04] [%clk 00:14:05]} 17. Qf4 {[%emt 00:00:14] [%clk 00:03:32]}
d3 {[%emt 00:00:51] [%clk 00:13:23]} 18. Bxd3 {[%emt 00:00:01] [%clk 00:03:41]}
Bxa1 {[%emt 00:00:03] [%clk 00:13:30]} 19. Qxe4 {[%emt 00:00:06] [%clk
00:03:45]} d5 {[%emt 00:00:32] [%clk 00:13:09]} 20. Qf3 {[%emt 00:01:04] [%clk
00:02:51]} dxc4 {[%emt 00:02:04] [%clk 00:11:15]} 21. Be4 {[%clk 00:03:00]} Rb8
{[%emt 00:00:27] [%clk 00:10:57]} 22. Ne3 {[%emt 00:00:06] [%clk 00:03:04]} Qf6
{[%emt 00:00:12] [%clk 00:10:55]} 23. Bxb7 {[%emt 00:00:32] [%clk 00:02:43]}
Qxf3 {[%emt 00:00:23] [%clk 00:10:41]} 24. Bxf3 {[%clk 00:02:46]} Bc3 {[%emt
00:00:12] [%clk 00:10:46]} 25. Rb1 {[%emt 00:00:21] [%clk 00:02:35]} Bd4 {[%emt
00:00:03] [%clk 00:10:53]} 26. Nd5 {[%emt 00:00:36] [%clk 00:02:09]} Bxd5 {[%emt
00:00:18] [%clk 00:10:45]} 27. Bxd5 {[%emt 00:00:02] [%clk 00:02:17]} c3 {[%emt
00:00:02] [%clk 00:10:53]} 28. Kf1 {[%emt 00:00:23] [%clk 00:02:05]} Bc5 {[%emt
00:00:27] [%clk 00:10:36]} 29. Rb3 {[%emt 00:00:49] [%clk 00:01:26]} Rbd8 {[%emt
00:00:43] [%clk 00:10:02]} 30. bxc5 {[%emt 00:00:17] [%clk 00:01:19]} Rxd5
{[%emt 00:00:03] [%clk 00:10:09]} 31. g4 {[%emt 00:01:00] [%clk 00:00:29]} Rd3
{[%emt 00:00:17] [%clk 00:10:02]} 32. Rb4 {[%emt 00:00:22] [%clk 00:00:17]} c2
{[%emt 00:00:09] [%clk 00:10:02]} 0-1

[Site "Europe Echecs"]

[Event "Championnat d'Europe Rapide"]
[Date "2024.12.07"]
[White "Alonso Rosell, Alvar"]
[Black "Shapkaroski, Goce"]
[WhiteElo "2532"]
[BlackElo "2137"]
[Round "1.43"]
[Result "1-0"]
[TimeControl "900+10"]

1. Nf3 {[%emt 00:00:05] [%clk 00:15:15]} d5 {[%emt 00:00:07] [%clk 00:15:15]} 2.
g3 {[%clk 00:15:21]} e6 {[%emt 00:00:02] [%clk 00:15:24]} 3. Bg2 {[%emt
00:00:11] [%clk 00:15:19]} Nf6 {[%emt 00:00:02] [%clk 00:15:32]} 4. O-O {[%emt
00:00:39] [%clk 00:14:50]} Be7 {[%emt 00:00:02] [%clk 00:15:41]} 5. c4 {[%emt
00:00:09] [%clk 00:14:51]} O-O {[%emt 00:00:03] [%clk 00:15:48]} 6. b3 {[%emt
00:00:25] [%clk 00:14:36]} c5 {[%emt 00:00:09] [%clk 00:15:49]} 7. cxd5 {[%emt
00:01:25] [%clk 00:13:21]} Nxd5 {[%emt 00:00:14] [%clk 00:15:46]} 8. Bb2 {[%emt
00:00:18] [%clk 00:13:13]} b6 {[%emt 00:01:50] [%clk 00:14:06]} 9. d4 {[%emt
00:00:19] [%clk 00:13:03]} Bb7 {[%emt 00:01:14] [%clk 00:13:03]} 10. Re1 {[%emt
00:00:15] [%clk 00:12:57]} cxd4 {[%emt 00:01:03] [%clk 00:12:09]} 11. Nxd4
{[%emt 00:02:50] [%clk 00:10:18]} Nc6 {[%emt 00:01:28] [%clk 00:10:51]} 12. Nd2
{[%emt 00:03:53] [%clk 00:06:35]} Nxd4 {[%emt 00:01:29] [%clk 00:09:33]} 13.
Bxd4 {[%emt 00:00:02] [%clk 00:06:42]} Rc8 {[%emt 00:00:12] [%clk 00:09:31]} 14.
Nc4 {[%emt 00:00:45] [%clk 00:06:07]} Bf6 {[%emt 00:07:05] [%clk 00:02:35]} 15.
Bxf6 {[%emt 00:00:56] [%clk 00:05:21]} Qxf6 {[%emt 00:01:18] [%clk 00:01:27]}
16. e4 {[%emt 00:01:27] [%clk 00:04:04]} Nb4 {[%emt 00:01:10] [%clk 00:00:27]}
17. e5 {[%emt 00:00:17] [%clk 00:03:57]} Qe7 {[%emt 00:00:01] [%clk 00:00:36]}
18. Bxb7 {[%emt 00:00:19] [%clk 00:03:48]} Qxb7 {[%emt 00:00:20] [%clk
00:00:26]} 19. Nd6 {[%emt 00:00:02] [%clk 00:03:56]} Qe7 {[%emt 00:00:09] [%clk
00:00:28]} 20. Nxc8 {[%emt 00:00:04] [%clk 00:04:01]} Rxc8 {[%emt 00:00:01]
[%clk 00:00:37]} 21. a3 {[%emt 00:00:26] [%clk 00:03:46]} Nd5 {[%clk 00:00:46]}
22. Qd2 {[%emt 00:00:25] [%clk 00:03:31]} h6 {[%emt 00:00:08] [%clk 00:00:48]}
23. b4 {[%emt 00:00:05] [%clk 00:03:36]} b5 {[%emt 00:00:29] [%clk 00:00:28]}
24. Rac1 {[%emt 00:00:25] [%clk 00:03:21]} Rb8 {[%emt 00:00:19] [%clk 00:00:19]}
25. Qd4 {[%emt 00:00:19] [%clk 00:03:11]} Nb6 {[%emt 00:00:16] [%clk 00:00:13]}
26. Red1 {[%emt 00:00:16] [%clk 00:03:05]} Nc4 {[%emt 00:00:02] [%clk 00:00:22]}
27. Qd7 {[%emt 00:01:15] [%clk 00:01:59]} Rb7 {[%emt 00:00:01] [%clk 00:00:32]}
28. Qc8+ {[%emt 00:00:16] [%clk 00:01:53]} Kh7 {[%emt 00:00:02] [%clk 00:00:40]}
29. Rd8 {[%emt 00:00:13] [%clk 00:01:49]} Nxe5 {[%emt 00:00:10] [%clk 00:00:41]}
30. Rh8+ {[%emt 00:00:26] [%clk 00:01:32]} Kg6 {[%emt 00:00:02] [%clk 00:00:49]}
31. Qc2+ {[%emt 00:00:08] [%clk 00:01:34]} f5 {[%emt 00:00:12] [%clk 00:00:48]}
32. Qe2 {[%emt 00:00:22] [%clk 00:01:22]} Nc4 {[%emt 00:00:13] [%clk 00:00:45]}
33. h4 {[%emt 00:00:20] [%clk 00:01:12]} Rd7 {[%emt 00:00:15] [%clk 00:00:40]}
34. Re1 {[%emt 00:00:09] [%clk 00:01:13]} e5 {[%emt 00:00:04] [%clk 00:00:46]}
35. Qf3 {[%emt 00:00:16] [%clk 00:01:06]} a6 {[%emt 00:00:21] [%clk 00:00:35]}
36. h5+ {[%emt 00:00:08] [%clk 00:01:08]} Kf6 {[%emt 00:00:06] [%clk 00:00:39]}
37. g4 {[%emt 00:00:07] [%clk 00:01:10]} f4 {[%emt 00:00:09] [%clk 00:00:39]}
38. Qe4 {[%emt 00:00:06] [%clk 00:01:15]} Kg5 {[%emt 00:00:29] [%clk 00:00:21]}
39. Qf5+ {[%emt 00:00:21] [%clk 00:01:03]} Kh4 {[%emt 00:00:02] [%clk 00:00:30]}
40. Kg2 {[%emt 00:00:21] [%clk 00:00:52]} Ne3+ {[%emt 00:00:06] [%clk 00:00:34]}
41. fxe3 {[%emt 00:00:05] [%clk 00:00:56]} Rd2+ {[%emt 00:00:02] [%clk
00:00:43]} 42. Kf3 {[%emt 00:00:36] [%clk 00:00:30]} Qb7+ {[%emt 00:00:04] [%clk
00:00:48]} 43. e4 {[%emt 00:00:05] [%clk 00:00:35]} Rd3+ {[%emt 00:00:28] [%clk
00:00:30]} 44. Ke2 {[%emt 00:00:04] [%clk 00:00:41]} Re3+ {[%emt 00:00:04] [%clk
00:00:36]} 45. Kd2 {[%emt 00:00:11] [%clk 00:00:41]} Qc7 {[%emt 00:00:06] [%clk
00:00:40]} 46. Rxe3 {[%emt 00:00:11] [%clk 00:00:39]} fxe3+ {[%emt 00:00:02]
[%clk 00:00:49]} 47. Kxe3 {[%emt 00:00:01] [%clk 00:00:47]} Qc3+ {[%emt
00:00:01] [%clk 00:00:55]} 48. Kf2 {[%emt 00:00:05] [%clk 00:00:55]} Qd2+ {[%emt
00:00:22] [%clk 00:00:43]} 49. Kg1 {[%emt 00:00:03] [%clk 00:01:00]} Kh3 {[%emt
00:00:16] [%clk 00:00:38]} 50. Qf3+ {[%emt 00:00:02] [%clk 00:01:08]} Kh4 {[%emt
00:00:13] [%clk 00:00:35]} 51. Qf2+ {[%emt 00:00:02] [%clk 00:01:16]} 1-0

[Site "Europe Echecs"]